Workbook

Sheet START
B1: INFORMACJE O TYM SZABLONIE
B2: Śledź początkową inwestycję w witrynę internetową, jej korzyści i koszty przy użyciu tego narzędzia do budżetowania witryny internetowej.
B3: Wprowadź szczegóły w tabelach, aby automatycznie obliczyć sumy i metryki oceny.
B4: Notatka:
B5: W kolumnie A w arkuszu NARZĘDZIE BUDŻETOWE podano dodatkowe instrukcje. Ten tekst został celowo ukryty. Aby usunąć tekst, zaznacz kolumnę A, a następnie naciśnij klawisz DELETE. Aby odkryć tekst, zaznacz kolumnę A, a następnie zmień kolor czcionki.
B6: Aby uzyskać więcej informacji o tabelach w tym arkuszu, w tabeli naciśnij klawisz SHIFT, a następnie F10, wybierz pozycję TABELA, a następnie TEKST ALTERNATYWNY.

Sheet NARZĘDZIE BUDŻETOWE
B2: Sprzęt Quadrex
B3: NARZĘDZIE DO BUDŻETOWANIA WITRYNY INTERNETOWEJ
B4: 2022-12-01
B6: Dane firmy | C6: Stawka
B7: Wymagana stopa zwrotu | C7: 10%
B8: Stawka podatkowa | C8: 30%
B10: Początkowa inwestycja w witrynę internetową | C10: Rok
B11: Sprzęt (np. serwery) | C11: 25,000.00 zł
B12: Oprogramowanie (np. oprogramowanie katalogowe e-commerce) | C12: 15,000.00 zł
B13: Rozwój (np. projektowanie i opracowywanie przez inna firmę) | C13: 150,000.00 zł
B14: Suma początkowych inwestycji | C14: =SUBTOTAL(109,Początkowa_inwestycja[Rok]) -> 190,000.00 zł
B16: Korzyści z witryny internetowej | C16: Rok 1 | D16: Rok 2 | E16: Rok 3
B17: Sprzedaż bezpośrednia | C17: 15,000.00 zł | D17: 50,000.00 zł | E17: 75,000.00 zł
B18: Wzrost sprzedaży w wyniku zwiększonej efektywności promocyjnej/sprzedawców | C18: 25,000.00 zł | D18: 25,000.00 zł | E18: 25,000.00 zł
B19: Wzrost sprzedaży w wyniku zwiększonego uczestnictwa partnerów | C19: 25,000.00 zł | D19: 25,000.00 zł | E19: 25,000.00 zł
B20: Obniżone koszty podróży | C20: 25,000.00 zł | D20: 25,000.00 zł | E20: 25,000.00 zł
B21: Obniżone koszty obsługi klienta | C21: 50,000.00 zł | D21: 50,000.00 zł | E21: 50,000.00 zł
B22: Suma korzyści | C22: =SUBTOTAL(109,Korzyści[Rok 1]) -> 140,000.00 zł | D22: =SUBTOTAL(109,Korzyści[Rok 2]) -> 175,000.00 zł | E22: =SUBTOTAL(109,Korzyści[Rok 3]) -> 200,000.00 zł
B24: Koszty (bez początkowych inwestycji kapitałowych) | C24: ROK 1 | D24: ROK 2 | E24: ROK 3
B25: Koszt sprzedaży | C25: 7,500.00 zł | D25: 25,000.00 zł | E25: 37,500.00 zł
B26: Konserwacja | C26: 15,000.00 zł | D26: 15,000.00 zł | E26: 15,000.00 zł
B27: Zarządzanie projektami, obsługa klienta | C27: 35,000.00 zł | D27: 35,000.00 zł | E27: 35,000.00 zł
B28: Reklama online, rejestracja w wyszukiwarkach | C28: 10,000.00 zł | D28: 10,000.00 zł | E28: 10,000.00 zł
B29: Amortyzacja wydatków kapitałowych (w obliczeniach jest używany okres trzyletni) | C29: =Początkowa_inwestycja[[#Totals],[Rok]]/3 -> 63,333.33 zł | D29: =Początkowa_inwestycja[[#Totals],[Rok]]/3 -> 63,333.33 zł | E29: =Początkowa_inwestycja[[#Totals],[Rok]]/3 -> 63,333.33 zł
B30: Koszty całkowite | C30: =SUBTOTAL(109,Koszty[ROK 1]) -> 130,833.33 zł | D30: =SUBTOTAL(109,Koszty[ROK 2]) -> 148,333.33 zł | E30: =SUBTOTAL(109,Koszty[ROK 3]) -> 160,833.33 zł
B32: Sumy | D32: Rok 1 | E32: Rok 2 | F32: Rok 3
B33: Korzyści netto (koszty) | D33: =Korzyści[[#Totals],[Rok 1]]-Koszty[[#Totals],[ROK 1]] -> 9,166.67 zł | E33: =Korzyści[[#Totals],[Rok 2]]-Koszty[[#Totals],[ROK 2]] -> 26,666.67 zł | F33: =Korzyści[[#Totals],[Rok 3]]-Koszty[[#Totals],[ROK 3]] -> 39,166.67 zł
B34: Podatek | D34: =D33*TaxRate -> 2,750.00 zł | E34: =E33*TaxRate -> 8,000.00 zł | F34: =F33*TaxRate -> 11,750.00 zł
B35: Wartość po opodatkowaniu | D35: =D33-D34 -> 6,416.67 zł | E35: 18,666.67 zł | F35: 27,416.67 zł
B36: Uwzględnienie amortyzacji | D36: =C29 -> 63,333.33 zł | E36: =D29 -> 63,333.33 zł | F36: =E29 -> 63,333.33 zł
B37: Przepływ gotówkowy | C37: =-C14 -> -190,000.00 zł | D37: =D35+D36 -> 69,750.00 zł | E37: 82,000.00 zł | F37: 90,750.00 zł
B38: Skumulowany przepływ gotówkowy | C38: =C37 -> -190,000.00 zł | D38: =C38+D37 -> -120,250.00 zł | E38: =D38+E37 -> -38,250.00 zł | F38: =E38+F37 -> 52,500.00 zł
B40: Metryki oceny | C40: Wartości
B41: Wartość bieżąca netto (NPV) | C41: =C37+(NPV(STOPA_ZWROTU,D37:F37)) -> 9,359.50 zł
B42: Wewnętrzna stopa zwrotu (IRR) | C42: =IRR(C37:F37) -> 12.66%
B43: Okres zwrotu z inwestycji (w latach) | C43: =IF(F38<=0,"Przekracza 3 lata",IF(E38<=0,(F37-F38)/F37+2,IF(D38<=0,(E37-E38)/E37+1,IF(C38<=0,(D37-D38)/D37,"N/D")))) -> 2.42
